fUSD/lending_fUSD_20240109
["ID","MTS","AMOUNT","RATE_DAILY","PERIOD"]
[310932704,1704822724218,-500.0,0.00041342,30]
[310932705,1704822724230,-1130.34,0.00041342,30]
[310932706,1704822724244,-500.0,0.00041342,30]
[310932707,1704822724257,-593.8,0.00041342,30]
[310932708,1704822724270,-500.0,0.00041342,30]
[310932709,1704822724282,-511.72,0.00041342,30]
[310932710,1704822724295,-952.27,0.00041342,30]
[310932711,1704822724307,-500.0,0.00041342,30]
[310932712,1704822724320,-528.56,0.00041342,30]
[310932713,1704822724333,-500.0,0.00041342,30]
[310932714,1704822724346,-500.0,0.00041342,30]
[310932715,1704822724358,-691.64,0.00041342,30]
[310932716,1704822724371,-500.0,0.00041342,30]
[310932717,1704822724384,-500.0,0.00041342,30]
[310932718,1704822724406,-500.0,0.00041342,30]
[310932719,1704822724419,-500.0,0.00041342,30]
[310932720,1704822724430,-1470.07,0.00041342,30]
[310932721,1704822724443,-288.91567624,0.00041342,30]
[310932722,1704822724456,-834.95,0.00041342,30]
[310932723,1704822724468,-500.0,0.00041342,30]
[310932724,1704822724481,-603.81,0.00041342,30]
[310932725,1704822724498,-500.0,0.00041342,30]
[310932726,1704822724509,-500.0,0.00041342,30]
[310932727,1704822724519,-500.0,0.00041342,30]
[310932728,1704822724530,-3062.67,0.00041342,30]
[310932729,1704822724540,-637.53,0.00041342,30]
[310932730,1704822724551,-500.0,0.00041342,30]
[310932731,1704822724561,-500.0,0.00041342,30]
[310932732,1704822725019,-500.0,0.00041342,30]
[310932733,1704822725037,-500.0,0.00041342,30]
[310932734,1704822725046,-500.0,0.00041342,30]
[310932735,1704822725056,-500.0,0.00041342,30]
[310932736,1704822725065,-633.3112265,0.00041342,30]
[310932737,1704822725076,-500.0,0.00041342,30]
[310932738,1704822725086,-500.0,0.00041342,30]
[310932739,1704822725096,-500.0,0.00041342,30]
[310932740,1704822725106,-951.54,0.00041342,30]
[310932741,1704822725116,-500.0,0.00041342,30]
[310932742,1704822725126,-1554.84,0.00041342,30]
[310932743,1704822725136,-783.64,0.00041342,30]
[310932744,1704822725146,-500.0,0.00041342,30]
[310932745,1704822725155,-500.0,0.00041342,30]
[310932746,1704822725165,-500.0,0.00041342,30]
[310932747,1704822725174,-500.0,0.00041342,30]
[310932748,1704822725184,-500.0,0.00041342,30]
[310932749,1704822725193,-500.0,0.00041342,30]
[310932750,1704822725203,-1000.0,0.00041342,2]
[310932751,1704822725212,-955.99,0.00041342,30]
[310932752,1704822725221,-500.0,0.00041342,30]
[310932753,1704822725231,-584.0,0.00041342,30]
[310932754,1704822725242,-500.0,0.00041342,30]
[310932755,1704822725252,-500.0,0.00041342,30]
[310932756,1704822725262,-500.0,0.00041342,30]
[310932757,1704822725272,-500.0,0.00041342,30]
[310932758,1704822725282,-742.2,0.00041342,30]
[310932759,1704822725293,-667.03,0.00041342,30]
[310932760,1704822725303,-583.06106517,0.00041342,30]
[310932761,1704822725313,-500.0,0.00041342,30]
[310932762,1704822725323,-500.0,0.00041342,30]
[310932763,1704822725333,-1579.23,0.00041342,30]
[310932764,1704822725342,-500.0,0.00041342,30]
[310932765,1704822725353,-500.0,0.00041342,30]
[310932766,1704822725363,-1683.26,0.00041342,30]
[310932767,1704822725373,-552.06135365,0.00041342,30]
[310932768,1704822725383,-500.0,0.00041342,30]
[310932769,1704822725393,-500.0,0.00041342,30]
[310932770,1704822725403,-732.8,0.00041342,30]
[310932771,1704822725412,-500.0,0.00041342,30]
[310932772,1704822725422,-500.0,0.00041342,30]
[310932773,1704822725432,-500.0,0.00041342,30]
[310932774,1704822725442,-500.0,0.00041342,30]
[310932775,1704822725452,-1701.57,0.00041342,30]
[310932776,1704822725462,-609.24,0.00041342,30]
[310932777,1704822725473,-995.31,0.00041342,30]
[310932778,1704822725485,-500.0,0.00041342,30]
[310932779,1704822725497,-500.0,0.00041342,30]
[310932780,1704822725507,-500.0,0.00041342,30]
[310932781,1704822725517,-546.32,0.00041342,30]
[310932782,1704822725528,-1289.05,0.00041342,30]
[310932783,1704822725538,-1075.03,0.00041342,30]
[310932784,1704822725549,-500.0,0.00041342,30]
[310932785,1704822725559,-500.0,0.00041342,30]
[310932786,1704822725569,-1605.53,0.00041342,30]
[310932787,1704822725579,-500.0,0.00041342,30]
[310932788,1704822725589,-1111.16,0.00041342,30]
[310932789,1704822725598,-500.0,0.00041342,30]
[310932790,1704822725608,-746.35,0.00041342,30]
[310932791,1704822725617,-1189.53,0.00041342,30]
[310932792,1704822725626,-500.0,0.00041342,30]
[310932793,1704822725636,-500.0,0.00041342,30]
[310932794,1704822725645,-500.0,0.00041342,30]
[310932795,1704822725655,-566.22,0.00041342,30]
[310932796,1704822725665,-927.99,0.00041342,30]
[310932797,1704822725674,-1587.98,0.00041342,30]
[310932798,1704822725684,-500.0,0.00041342,30]
[310932799,1704822725693,-500.0,0.00041342,30]
[310932800,1704822725703,-665.79,0.00041342,30]
[310932801,1704822725713,-1083.99,0.00041342,30]
[310932802,1704822725722,-1352.1,0.00041342,30]
[310932803,1704822725732,-513.28302611,0.00041342,30]
[310932804,1704822725742,-500.0,0.00041342,30]
[310932805,1704822725752,-657.61,0.00041342,30]
[310932806,1704822725762,-500.0,0.00041342,30]
[310932807,1704822725772,-500.0,0.00041342,30]
[310932808,1704822725784,-831.46,0.00041342,30]
[310932809,1704822725797,-876.27,0.00041342,30]
[310932810,1704822725808,-1165.49,0.00041342,30]
[310932811,1704822725818,-1499.79,0.00041342,30]
[310932812,1704822725832,-599.72734998,0.00041342,30]
[310932813,1704822725842,-500.0,0.00041342,30]
[310932814,1704822725852,-1224.45,0.00041342,30]
[310932815,1704822725863,-585.09,0.00041342,30]
[310932816,1704822725874,-500.0,0.00041342,30]
[310932817,1704822725884,-1187.3,0.00041342,30]
[310932818,1704822725894,-500.0,0.00041342,30]
[310932819,1704822725905,-500.0,0.00041342,30]
[310932820,1704822725914,-1451.41,0.00041342,30]
[310932821,1704822725925,-1109.01,0.00041342,30]
[310932822,1704822725935,-1165.31,0.00041342,30]
[310932823,1704822725944,-500.0,0.00041342,30]
[310932824,1704822725954,-500.0,0.00041342,30]
[310932825,1704822725964,-511.64520649,0.00041342,30]
[310932826,1704822725975,-500.0,0.00041342,30]
[310932827,1704822725985,-1030.53,0.00041342,30]
[310932828,1704822725996,-1058.21,0.00041342,30]
[310932829,1704822726006,-713.27,0.00041342,30]
[310932830,1704822726017,-500.0,0.00041342,30]
[310932831,1704822726027,-1268.66,0.00041342,30]
[310932832,1704822726036,-515.65595146,0.00041342,30]
[310932833,1704822726047,-2171.66,0.00041342,30]
[310932834,1704822726057,-657.69,0.00041342,30]
[310932835,1704822726068,-300.0,0.00041342,30]
[310932836,1704822726078,-698.65,0.00041342,30]
[310932837,1704822726088,-816.63,0.00041342,5]
[310932838,1704822726099,-835.19,0.00041342,30]
[310932839,1704822726109,-500.0,0.00041342,30]
[310932840,1704822726119,-500.0,0.00041342,30]
[310932841,1704822726129,-500.0,0.00041342,30]
[310932842,1704822726139,-500.0,0.00041342,30]
[310932843,1704822726150,-617.92,0.00041342,30]
[310932844,1704822726161,-500.0,0.00041342,30]
[310932845,1704822726172,-3829.67,0.00041342,30]
[310932846,1704822726184,-1000.0,0.00041342,2]
[310932847,1704822726193,-500.0,0.00041342,2]
[310932848,1704822726204,-653.11,0.00041342,30]
[310932849,1704822726214,-500.0,0.00041342,30]
[310932850,1704822726225,-500.0,0.00041342,30]
[310932851,1704822726235,-1196.79,0.00041342,30]
[310932852,1704822726248,-500.0,0.00041342,30]
[310932853,1704822726258,-500.0,0.00041342,30]
[310932854,1704822726269,-500.0,0.00041342,30]
[310932855,1704822726279,-924.68,0.00041342,30]
[310932856,1704822726289,-1534.65,0.00041342,30]
[310932857,1704822726299,-1071.73,0.00041342,30]
[310932858,1704822726309,-500.0,0.00041342,30]
[310932859,1704822726318,-910.34,0.00041342,30]
[310932860,1704822726327,-563.27,0.00041342,30]
[310932861,1704822726337,-2625.83,0.00041342,30]
[310932862,1704822726347,-1003.2,0.00041342,30]
[310932863,1704822726357,-500.0,0.00041342,30]
[310932864,1704822726367,-1069.06,0.00041342,30]
[310932865,1704822726376,-693.77,0.00041342,30]
[310932866,1704822726386,-500.0,0.00041342,30]
[310932867,1704822726396,-3778.52,0.00041342,30]
[310932868,1704822726406,-3358.65,0.00041342,30]
[310932869,1704822726416,-775.18,0.00041342,30]
[310932870,1704822726425,-500.0,0.00041342,30]
[310932871,1704822726435,-500.0,0.00041342,30]
[310932872,1704822726446,-1018.17,0.00041342,30]
[310932873,1704822726455,-500.0,0.00041342,30]
[310932874,1704822726465,-627.54,0.00041342,30]
[310932875,1704822726474,-1597.58,0.00041342,30]
[310932876,1704822726484,-680.27,0.00041342,30]
[310932877,1704822726497,-1108.25,0.00041342,30]
[310932878,1704822726507,-680.58,0.00041342,30]
[310932879,1704822726517,-840.77,0.00041342,30]
[310932880,1704822726527,-500.0,0.00041342,30]
[310932881,1704822726536,-500.0,0.00041342,30]
[310932882,1704822726546,-500.0,0.00041342,30]
[310932883,1704822726556,-1688.18,0.00041342,30]
[310932884,1704822726566,-500.0,0.00041342,30]
[310932885,1704822726575,-500.0,0.00041342,30]
[310932886,1704822726585,-764.23,0.00041342,30]
[310932887,1704822726595,-500.0,0.00041342,30]
[310932888,1704822726605,-500.0,0.00041342,30]
[310932889,1704822726614,-500.0,0.00041342,30]
[310932890,1704822726624,-500.0,0.00041342,30]
[310932891,1704822726634,-500.0,0.00041342,30]
[310932892,1704822726644,-1292.97,0.00041342,30]
[310932893,1704822726653,-2704.06,0.00041342,30]
[310932894,1704822726662,-689.03,0.00041342,30]
[310932895,1704822726672,-897.63,0.00041342,30]
[310932896,1704822726682,-1997.42,0.00041342,30]
[310932897,1704822726691,-753.25,0.00041342,30]
[310932898,1704822726701,-863.4,0.00041342,30]
[310932899,1704822726711,-500.0,0.00041342,30]
[310932900,1704822726721,-500.0,0.00041342,30]
[310932901,1704822726731,-1538.51,0.00041342,30]
[310932902,1704822726742,-1469.75,0.00041342,30]
[310932903,1704822726752,-500.0,0.00041342,30]
[310932904,1704822726761,-744.34,0.00041342,30]
[310932905,1704822726771,-500.0,0.00041342,30]
[310932906,1704822726781,-500.0,0.00041342,30]
[310932907,1704822726791,-1416.77,0.00041342,30]
[310932908,1704822726801,-544.19,0.00041342,30]
[310932909,1704822726811,-1752.19,0.00041342,30]
[310932910,1704822726821,-500.0,0.00041342,30]
[310932911,1704822726831,-500.0,0.00041342,10]
[310932912,1704822726841,-500.0,0.00041342,30]
[310932913,1704822726850,-500.0,0.00041342,30]
[310932914,1704822726860,-992.88,0.00041342,30]
[310932915,1704822726869,-907.17,0.00041342,30]
[310932916,1704822726880,-820.02,0.00041342,30]
[310932917,1704822726890,-696.79,0.00041342,30]
[310932918,1704822726899,-830.16,0.00041342,30]
[310932919,1704822726909,-1042.21,0.00041342,30]
[310932920,1704822726918,-583.6297219,0.00041342,30]
[310932921,1704822726928,-921.85,0.00041342,30]
[310932922,1704822726937,-500.0,0.00041342,30]
[310932923,1704822726947,-500.0,0.00041342,30]
[310932924,1704822726957,-936.43,0.00041342,30]
[310932925,1704822726966,-500.0,0.00041342,30]
[310932926,1704822726975,-500.0,0.00041342,30]
[310932927,1704822726984,-500.0,0.00041342,30]
[310932928,1704822726994,-500.0,0.00041342,30]
[310932929,1704822727004,-500.0,0.00041342,30]
[310932930,1704822727013,-500.0,0.00041342,30]
[310932931,1704822727022,-500.0,0.00041342,30]
[310932932,1704822727031,-500.0,0.00041342,30]
[310932933,1704822727040,-3608.68,0.00041342,30]
[310932934,1704822727049,-1062.16,0.00041342,30]
[310932935,1704822727059,-500.0,0.00041342,30]
[310932936,1704822727068,-797.98,0.00041342,30]
[310932937,1704822727078,-848.43,0.00041342,30]
[310932938,1704822727087,-594.13,0.00041342,30]
[310932939,1704822727097,-543.9,0.00041342,30]
[310932940,1704822727106,-500.0,0.00041342,30]
[310932941,1704822727116,-500.0,0.00041342,30]
[310932942,1704822727125,-521.48425628,0.00041342,30]
[310932943,1704822727135,-765.38,0.00041342,30]
[310932944,1704822727144,-1432.21,0.00041342,30]
[310932945,1704822727155,-500.0,0.00041342,30]
[310932946,1704822727165,-1359.32,0.00041342,30]
[310932947,1704822727174,-500.0,0.00041342,30]
[310932948,1704822727183,-500.0,0.00041342,30]
[310932949,1704822727192,-1854.87,0.00041342,30]
[310932950,1704822727202,-720.0,0.00041342,30]
[310932951,1704822727210,-1281.62,0.00041342,30]
[310932952,1704822727219,-558.71,0.00041342,30]
[310932953,1704822727229,-1462.19,0.00041342,30]
[310932954,1704822727239,-519.11214352,0.00041342,30]
[310932955,1704822727248,-500.0,0.00041342,30]
[310932956,1704822727257,-543.96,0.00041342,30]
[310932957,1704822727267,-500.0,0.00041342,30]
[310932958,1704822727370,-1104.04,0.00041342,30]
[310932959,1704822727379,-510.69139123,0.00041342,30]
[310932960,1704822727388,-500.0,0.00041342,30]
[310932961,1704822727397,-651.83,0.00041342,30]
[310932962,1704822727407,-2707.71,0.00041342,30]
[310932963,1704822727416,-500.0,0.00041342,30]
[310932964,1704822727425,-500.0,0.00041342,2]
[310932965,1704822727434,-851.87,0.00041342,30]
[310932966,1704822727442,-500.0,0.00041342,30]
[310932967,1704822727451,-708.74,0.00041342,30]
[310932968,1704822727461,-500.0,0.00041342,30]
[310932969,1704822727470,-500.0,0.00041342,30]
[310932970,1704822727479,-596.03,0.00041342,30]
[310932971,1704822727491,-1208.31,0.00041342,30]
[310932972,1704822727500,-859.98,0.00041342,30]
[310932973,1704822727512,-1009.5,0.00041342,30]
[310932974,1704822727520,-1834.86,0.00041342,30]
[310932975,1704822727530,-500.0,0.00041342,30]
[310932976,1704822727539,-2228.31,0.00041342,30]
[310932977,1704822727548,-500.0,0.00041342,30]
[310932978,1704822727557,-500.0,0.00041342,30]
[310932979,1704822727565,-500.0,0.00041342,30]
[310932980,1704822727574,-500.0,0.00041342,30]
[310932981,1704822727583,-500.0,0.00041342,30]
[310932982,1704822727592,-758.85,0.00041342,30]
[310932983,1704822727601,-850.13,0.00041342,30]
[310932984,1704822727610,-500.0,0.00041342,30]
[310932985,1704822727619,-1653.94,0.00041342,30]
[310932986,1704822727628,-657.1,0.00041342,30]
[310932987,1704822727638,-302.32060759,0.00041342,30]
[310932988,1704822727647,-500.0,0.00041342,30]
[310932989,1704822727655,-2251.85,0.00041342,30]
[310932990,1704822727665,-1855.79,0.00041342,30]
[310932991,1704822727675,-1305.33,0.00041342,30]
[310932992,1704822727684,-500.0,0.00041342,30]
[310932993,1704822727693,-500.0,0.00041342,30]
[310932994,1704822727701,-1047.74,0.00041342,30]
[310932995,1704822727710,-500.0,0.00041342,30]
[310932996,1704822727720,-500.0,0.00041342,30]
[310932997,1704822727729,-2864.14,0.00041342,30]
[310932998,1704822727739,-500.0,0.00041342,30]
[310932999,1704822727748,-500.0,0.00041342,30]
[310933000,1704822727758,-500.0,0.00041342,30]
[310933001,1704822727767,-500.0,0.00041342,30]
[310933002,1704822727777,-514.02,0.00041342,30]
[310933003,1704822727787,-942.34,0.00041342,30]
[310933004,1704822727796,-1069.4,0.00041342,30]
[310933005,1704822727805,-2011.82,0.00041342,30]
[310933006,1704822727814,-500.0,0.00041342,30]
[310933007,1704822727823,-500.0,0.00041342,30]
[310933008,1704822727832,-1000.0,0.00041342,14]
[310933009,1704822727841,-500.0,0.00041342,30]
[310933010,1704822727850,-2179.29,0.00041342,30]
[310933011,1704822727859,-500.0,0.00041342,30]
[310933012,1704822727870,-1226.36,0.00041342,30]
[310933013,1704822727879,-500.0,0.00041342,30]
[310933014,1704822727889,-1543.99,0.00041342,30]
[310933015,1704822727901,-1167.82,0.00041342,30]
[310933016,1704822727910,-500.0,0.00041342,30]
[310933017,1704822727919,-500.0,0.00041342,30]
[310933018,1704822727929,-1662.23,0.00041342,30]
[310933019,1704822727938,-650.25,0.00041342,30]
[310933020,1704822727947,-512.86439282,0.00041342,30]
[310933021,1704822727956,-500.0,0.00041342,30]
[310933022,1704822727965,-1333.2,0.00041342,30]
[310933023,1704822727975,-593.34,0.00041342,30]
[310933024,1704822727984,-500.0,0.00041342,30]
[310933025,1704822727995,-1120.58,0.00041342,30]
[310933026,1704822728004,-1539.75,0.00041342,30]
[310933027,1704822728013,-500.0,0.00041342,30]
[310933028,1704822728022,-500.0,0.00041342,30]
[310933029,1704822728030,-500.0,0.00041342,30]
[310933030,1704822728039,-577.44,0.00041342,30]
[310933031,1704822728048,-500.0,0.00041342,30]
[310933032,1704822728057,-2132.61,0.00041342,30]
[310933033,1704822728066,-2334.2,0.00041342,30]
[310933034,1704822728075,-717.62,0.00041342,30]
[310933035,1704822728085,-500.0,0.00041342,30]
[310933036,1704822728094,-2030.29,0.00041342,30]
[310933037,1704822728104,-500.0,0.00041342,30]
[310933038,1704822728113,-820.59,0.00041342,30]
[310933039,1704822728122,-500.0,0.00041342,30]
[310933040,1704822728131,-500.0,0.00041342,30]
[310933041,1704822728141,-500.0,0.00041342,30]
[310933042,1704822728151,-500.0,0.00041342,30]
[310933043,1704822728160,-500.0,0.00041342,30]
[310933044,1704822728170,-500.0,0.00041342,30]
[310933045,1704822728180,-648.37,0.00041342,30]
[310933046,1704822728189,-500.0,0.00041342,30]
[310933047,1704822728198,-2212.18,0.00041342,30]
[310933048,1704822728207,-500.0,0.00041342,30]
[310933049,1704822728215,-500.0,0.00041342,30]
[310933050,1704822728224,-500.0,0.00041342,30]
[310933051,1704822728233,-500.0,0.00041342,30]
[310933052,1704822728243,-500.0,0.00041342,30]
[310933053,1704822728253,-500.0,0.00041342,30]
[310933054,1704822728262,-500.0,0.00041342,30]
[310933055,1704822728271,-1957.26,0.00041342,30]
[310933056,1704822728281,-500.0,0.00041342,30]
[310933057,1704822728290,-500.0,0.00041342,30]
[310933058,1704822728299,-500.0,0.00041342,30]
[310933059,1704822728309,-789.94,0.00041342,7]
[310933060,1704822728317,-524.13,0.00041342,30]
[310933061,1704822728327,-1295.45,0.00041342,30]
[310933062,1704822728336,-500.0,0.00041342,30]
[310933063,1704822728351,-500.0,0.00041342,30]
[310933064,1704822728360,-774.08,0.00041342,30]
[310933065,1704822728369,-500.0,0.00041342,30]
[310933066,1704822728385,-500.0,0.00041342,30]
[310933067,1704822728394,-500.0,0.00041342,30]
[310933068,1704822728403,-1177.5,0.00041342,30]
[310933069,1704822728412,-846.58,0.00041342,30]
[310933070,1704822728421,-626.38,0.00041342,30]
[310933071,1704822728430,-526.50805604,0.00041342,30]
[310933072,1704822728440,-1523.1,0.00041342,30]
[310933073,1704822728448,-1815.37,0.00041342,30]
[310933074,1704822728458,-1680.4,0.00041342,30]
[310933075,1704822728468,-500.0,0.00041342,30]
[310933076,1704822728481,-500.0,0.00041342,30]
[310933077,1704822728494,-500.0,0.00041342,30]
[310933078,1704822728503,-500.0,0.00041342,30]
[310933079,1704822728512,-1453.99,0.00041342,30]
[310933080,1704822728521,-500.0,0.00041342,30]
[310933081,1704822728531,-510.97879498,0.00041342,30]
[310933082,1704822728540,-522.28,0.00041342,30]
[310933083,1704822728549,-500.0,0.00041342,30]
[310933084,1704822728559,-741.95,0.00041342,30]
[310933085,1704822728568,-336.54567663,0.00041342,30]
[310933086,1704822728577,-2160.84,0.00041342,30]
[310933087,1704822728587,-500.0,0.00041342,30]
[310933088,1704822728596,-1117.93,0.00041342,30]
[310933089,1704822728605,-976.55,0.00041342,30]
[310933090,1704822728614,-500.0,0.00041342,30]
[310933091,1704822728623,-602.19,0.00041342,30]
[310933092,1704822728632,-785.61,0.00041342,30]
[310933093,1704822728642,-500.0,0.00041342,30]
[310933094,1704822728651,-500.0,0.00041342,30]
[310933095,1704822728659,-1722.63,0.00041342,30]
[310933096,1704822728668,-625.26,0.00041342,30]
[310933097,1704822728677,-500.0,0.00041342,30]
[310933098,1704822728686,-500.0,0.00041342,30]
[310933099,1704822728695,-1678.63,0.00041342,30]
[310933100,1704822728706,-500.0,0.00041342,30]
[310933101,1704822728714,-649.03,0.00041342,30]
[310933102,1704822728724,-534.61,0.00041342,30]
[310933103,1704822728733,-1131.06,0.00041342,30]
[310933104,1704822728743,-352.33679355,0.00041342,30]
[310933105,1704822728753,-525.26082432,0.00041342,30]
[310933106,1704822728762,-1859.73,0.00041342,30]
[310933107,1704822728771,-500.0,0.00041342,30]
[310933108,1704822728780,-500.0,0.00041342,30]
[310933109,1704822728789,-500.0,0.00041342,30]
[310933110,1704822728798,-2434.09,0.00041342,30]
[310933111,1704822728807,-500.0,0.00041342,30]
[310933112,1704822728816,-709.81,0.00041342,30]
[310933113,1704822728825,-500.0,0.00041342,30]
[310933114,1704822728834,-500.0,0.00041342,30]
[310933115,1704822728843,-500.0,0.00041342,30]
[310933116,1704822728852,-1393.92,0.00041342,30]
[310933117,1704822728861,-2143.09,0.00041342,30]
[310933118,1704822728870,-500.0,0.00041342,30]
[310933119,1704822728879,-500.0,0.00041342,30]
[310933120,1704822728888,-500.0,0.00041342,30]
[310933121,1704822728897,-1175.4,0.00041342,30]
[310933122,1704822728906,-500.0,0.00041342,30]
[310933123,1704822728915,-500.0,0.00041342,30]
[310933124,1704822728924,-911.8,0.00041342,30]
[310933125,1704822728933,-500.0,0.00041342,30]
[310933126,1704822728943,-2361.89,0.00041342,30]
[310933127,1704822728953,-2000.0,0.00041342,30]
[310933128,1704822728961,-500.0,0.00041342,30]
[310933129,1704822728971,-1811.74,0.00041342,30]
[310933130,1704822728980,-500.0,0.00041342,30]
[310933131,1704822728989,-651.7,0.00041342,30]
[310933132,1704822728999,-1064.25,0.00041342,30]
[310933133,1704822729008,-2616.95,0.00041342,30]
[310933134,1704822729018,-500.0,0.00041342,7]
[310933135,1704822729026,-1225.92,0.00041342,30]
[310933136,1704822729035,-558.53,0.00041342,30]
[310933137,1704822729044,-867.77,0.00041342,30]
[310933138,1704822729053,-500.0,0.00041342,30]
[310933139,1704822729062,-1715.96,0.00041342,30]
[310933140,1704822729071,-938.31,0.00041342,30]
[310933141,1704822729081,-930.54,0.00041342,30]
[310933142,1704822729089,-3610.35,0.00041342,30]
[310933143,1704822729099,-500.0,0.00041342,30]
[310933144,1704822729108,-500.0,0.00041342,30]
[310933145,1704822729117,-500.0,0.00041342,30]
[310933146,1704822729126,-1230.33,0.00041342,30]
[310933147,1704822729135,-509.72713278,0.00041342,30]
[310933148,1704822729145,-500.0,0.00041342,30]
[310933149,1704822729154,-500.0,0.00041342,30]
[310933150,1704822729163,-500.0,0.00041342,30]
[310933151,1704822729172,-825.9,0.00041342,30]
[310933152,1704822729181,-500.0,0.00041342,30]
[310933153,1704822729190,-1620.01,0.00041342,30]
[310933154,1704822729199,-500.0,0.00041342,30]
[310933155,1704822729209,-500.0,0.00041342,30]
[310933156,1704822729218,-500.0,0.00041342,5]
[310933157,1704822729227,-47067.85,0.00041342,30]
[310933158,1704822729236,-2088.17,0.00041342,30]
[310933159,1704822729247,-772.41,0.00041342,30]
[310933160,1704822729257,-432.90995613,0.00041342,30]
[310933161,1704822729266,-500.0,0.00041342,30]
[310933162,1704822729275,-617.74,0.00041342,30]
[310933163,1704822729284,-500.0,0.00041342,30]
[310933164,1704822729293,-500.0,0.00041342,30]
[310933165,1704822729303,-500.0,0.00041342,30]
[310933166,1704822729312,-500.0,0.00041342,30]
[310933167,1704822729321,-635.57,0.00041342,30]
[310933168,1704822729329,-607.62,0.00041342,30]
[310933169,1704822729339,-639.75,0.00041342,30]
[310933170,1704822729347,-500.0,0.00041342,30]
[310933171,1704822729357,-500.0,0.00041342,30]
[310933172,1704822729366,-1279.97,0.00041342,30]
[310933173,1704822729376,-9711.74,0.00041342,30]
[310933174,1704822729385,-500.0,0.00041342,30]
[310933175,1704822729395,-2008.91,0.00041342,30]
[310933176,1704822729404,-430.80961525,0.00041342,30]
[310933177,1704822729413,-500.0,0.00041342,30]
[310933178,1704822729422,-500.0,0.00041342,30]
[310933179,1704822729431,-2385.47,0.00041342,30]
[310933180,1704822729441,-1000.0,0.00041342,30]
[310933181,1704822729450,-500.0,0.00041342,30]
[310933182,1704822729459,-625.83,0.00041342,30]
[310933183,1704822729468,-1531.31,0.00041342,30]
[310933184,1704822729477,-500.0,0.00041342,30]
[310933185,1704822729488,-500.0,0.00041342,30]
[310933186,1704822729498,-500.0,0.00041342,30]
[310933187,1704822729508,-500.0,0.00041342,30]
[310933188,1704822729517,-5818.31,0.00041342,30]
[310933189,1704822729527,-504.54,0.00041342,30]
[310933190,1704822729536,-500.0,0.00041342,30]
[310933191,1704822729545,-2227.07,0.00041342,30]
[310933192,1704822729555,-500.0,0.00041342,30]
[310933193,1704822729564,-500.0,0.00041342,30]
[310933194,1704822729573,-500.0,0.00041342,30]
[310933195,1704822729582,-500.0,0.00041342,30]
[310933196,1704822729591,-500.0,0.00041342,30]
[310933197,1704822729601,-500.0,0.00041342,30]
[310933198,1704822729610,-1067.05,0.00041342,30]
[310933199,1704822729619,-500.0,0.00041342,30]
[310933200,1704822729629,-500.0,0.00041342,30]
[310933201,1704822729638,-500.0,0.00041342,30]
[310933202,1704822729647,-500.0,0.00041342,30]
[310933203,1704822729655,-500.0,0.00041342,30]